bitfinex/quotes_ETHUSD_20260304
["timestamp","ask_amount","ask_price","bid_price","bid_amount"]
[1772601960717,0.74457951,1963.1,1962.7,0.001]
[1772601960883,0.74457951,1963.1,1962.5,0.001]
[1772601961500,0.74457951,1962.9,1962.5,0.001]
[1772601961697,0.74457951,1962.7,1962.5,0.001]
[1772601963502,2.01833693,1962.7,1962.5,0.001]
[1772601964218,1.27375742,1962.7,1962.5,0.001]
[1772601964423,2.01833693,1962.7,1962.5,0.001]
[1772601964720,0.74457951,1962.7,1962.5,0.001]
[1772601964917,0.74457951,1962.6,1962.5,0.001]
[1772601969967,0.74457951,1963.1,1962.5,0.7512784]
[1772601970227,1.565,1962.7,1962.5,0.7512784]
[1772601971926,1.565,1962.7,1962.5,0.001]
[1772601972221,2.30957951,1962.7,1962.5,0.001]
[1772601972422,2.30957951,1962.7,1962.5,1.27488042]
[1772601972593,1.565,1962.7,1962.5,1.27488042]
[1772601973400,1.565,1962.7,1962.5,0.001]
[1772601974929,0.74457951,1962.6,1962.5,0.001]
[1772601975132,0.74457951,1962.6,1962.3,0.001]
[1772601976109,0.74457951,1962.5,1962.3,0.001]
[1772601976630,0.74457951,1962.5,1961.9,1.27426892]
[1772601976824,0.74457951,1962.5,1961.9,2.02454732]
[1772601977025,0.74457951,1962.5,1962.0,0.7502784]
[1772601978208,0.74457951,1962.5,1962.0,2.02443326]
[1772601978413,0.74457951,1962.5,1962.4,0.001]
[1772601978932,0.73376336,1962.6,1962.4,0.001]
[1772601981234,2.00759406,1962.6,1962.4,0.001]
[1772601982230,0.66261672,1962.5,1962.4,0.001]
[1772601982541,0.66261672,1962.5,1962.3,0.001]
[1772601982542,0.66261672,1962.5,1962.1,0.001]
[1772601983547,1.565,1962.4,1962.1,0.67472926]
[1772601984750,1.565,1962.4,1962.1,0.001]
[1772601986152,1.565,1962.4,1962.1,0.67472926]
[1772601987760,1.565,1962.4,1962.1,1.94883604]
[1772601988924,1.565,1962.4,1962.1,0.67472926]
[1772601990637,1.565,1962.4,1962.1,1.94886728]
[1772601991634,1.565,1962.4,1962.2,0.001]
[1772601993064,1.565,1962.4,1962.2,0.67472926]
[1772601993264,1.565,1962.5,1962.3,0.67372926]
[1772601993569,2.22761672,1962.5,1962.2,0.001]
[1772601994232,2.22761672,1962.5,1962.2,0.67472926]
[1772601994446,2.22761672,1962.5,1962.2,0.001]
[1772601994658,0.66261672,1962.4,1962.1,0.001]
[1772601995473,0.66261672,1962.4,1962.1,0.67472926]
[1772601995764,0.66261672,1962.4,1962.1,0.001]
[1772601996332,1.93658427,1962.4,1962.1,0.001]
[1772601996563,1.27396755,1962.4,1962.1,0.001]
[1772601996765,0.66261672,1962.3,1961.8,0.0011]
[1772601998461,0.66261672,1962.1,1961.8,0.0011]
[1772601998664,1.566,1962.0,1961.8,0.0011]
[1772601999664,1.566,1962.0,1961.8,0.67482926]
[1772601999970,1.566,1962.1,1961.8,0.67482926]
[1772602000436,2.22861672,1962.1,1961.8,0.67482926]
[1772602001038,2.22861672,1962.1,1961.8,1.94916587]
[1772602001570,2.22861672,1962.1,1961.8,0.67482926]
[1772602005078,0.66261672,1962.0,1961.6,0.67482926]
[1772602005288,0.66261672,1962.0,1960.8,4.91496451]
[1772602005289,0.74066553,1961.6,1960.8,4.91496451]
[1772602005448,0.77956802,1961.7,1960.3,5.10100356]
[1772602005449,0.74066553,1961.4,1960.3,5.10100356]
[1772602005648,3.05441454,1961.3,1960.3,5.10100356]
[1772602005964,0.74066553,1961.1,1960.3,5.10100356]
[1772602006167,0.74066553,1961.1,1959.4,1.42487456]
[1772602006168,0.74066553,1960.4,1959.4,1.42487456]
[1772602006463,0.74066553,1960.0,1959.4,1.42489425]
[1772602006644,0.74066553,1959.8,1959.1,0.14901404]
[1772602006972,1.567,1959.7,1959.2,1.27603103]
[1772602008363,1.567,1959.7,1959.1,5.25334367]
[1772602008364,2.38548075,1959.7,1959.1,1.42506497]
[1772602008849,0.81848075,1959.6,1959.0,1.27612189]
[1772602009787,2.84272881,1959.7,1959.1,0.26894091]
[1772602009788,1.567,1959.7,1959.1,0.26894091]
[1772602011283,1.567,1959.7,1959.3,0.2614263]
[1772602011655,0.81848075,1959.9,1959.3,0.2614263]
[1772602011870,1.567,1959.8,1959.3,0.2614263]
[1772602012051,1.567,1959.9,1959.3,0.2614263]
[1772602013400,5.10114958,1960.4,1959.5,0.25395517]
[1772602013401,1.27529069,1960.4,1959.5,0.25395517]
[1772602013564,0.81848075,1960.3,1959.5,0.25395517]
[1772602014286,1.567,1960.2,1959.5,0.25395517]
[1772602015198,1.567,1960.2,1958.4,2.35413247]
[1772602015199,0.81848075,1959.8,1958.4,2.35413247]
[1772602015406,0.81848075,1959.4,1958.6,0.24652725]
[1772602015608,0.81848075,1959.2,1958.3,1.27658248]
[1772602015756,0.81848075,1959.2,1958.2,5.9451174]
[1772602015757,0.81848075,1959.2,1958.2,2.11505536]
[1772602017687,0.81848075,1959.0,1958.2,1.27666372]
[1772602017894,0.81848075,1959.0,1958.1,3.54277769]
[1772602018058,5.10433638,1959.2,1958.2,0.83839164]
[1772602018059,0.81848075,1959.2,1958.2,0.83839164]
[1772602018259,0.81848075,1959.2,1958.4,0.83839164]
[1772602019091,2.38348075,1959.2,1958.4,0.83839164]
[1772602019492,3.65952207,1959.2,1958.5,1.2764871]
[1772602019989,0.81848075,1959.1,1958.5,1.2764871]
[1772602020395,0.81848075,1959.1,1958.4,2.11490175]
[1772602020696,2.38348075,1959.1,1958.4,1.27651011]
[1772602020892,2.38348075,1959.3,1958.6,2.66247471]
[1772602021397,2.38348075,1959.3,1958.7,0.83839164]
[1772602022014,2.38348075,1959.3,1958.7,2.11470384]
[1772602023008,1.27571437,1959.7,1959.1,2.14170938]
[1772602023298,0.81848075,1959.7,1959.1,0.83839164]
[1772602024398,0.81848075,1959.7,1959.2,1.27603103]
[1772602026100,0.001,1959.8,1959.3,2.14170938]
[1772602026316,0.001,1959.8,1959.4,1.27590078]
[1772602026783,0.001,1959.8,1959.4,2.11429242]
[1772602027993,0.001,1959.8,1959.5,0.83839164]
[1772602028506,0.001,1959.8,1959.5,2.11418559]
[1772602029583,0.001,1959.7,1959.5,2.11418559]
[1772602030808,0.81848075,1959.1,1957.2,0.83839164]
[1772602031011,0.81848075,1959.1,1957.0,1.30331774]
[1772602031012,0.81848075,1958.4,1957.3,1.86323785]
[1772602031178,3.01326917,1958.3,1957.4,2.14170938]
[1772602031381,3.01326917,1958.3,1957.1,2.92857501]
[1772602031382,1.562,1958.6,1957.7,0.83839164]
[1772602031812,3.01643823,1958.5,1957.7,0.83839164]
[1772602032605,4.29296284,1958.5,1957.8,1.2769435]
[1772602032809,3.01643823,1958.4,1957.8,1.2769435]
[1772602033210,3.01643823,1958.4,1957.8,2.11533514]
[1772602034714,3.01643823,1958.3,1957.8,2.11533514]
[1772602034885,2.83845808,1958.6,1957.8,2.11533514]
[1772602035080,2.83845808,1958.6,1957.7,5.1079024]
[1772602035081,0.81848075,1958.4,1957.2,1.27733496]
[1772602035320,6.25872459,1958.3,1957.3,0.83839164]
[1772602035615,3.02731266,1958.2,1957.3,0.83839164]
[1772602035790,3.02731266,1958.1,1957.3,0.83839164]
[1772602035996,3.02731266,1958.0,1957.3,0.83839164]
[1772602036309,3.23141193,1958.3,1957.3,0.83839164]
[1772602036614,4.30996542,1958.2,1957.4,2.11559609]
[1772602036810,3.03327306,1958.1,1957.4,2.11559609]
[1772602037014,3.03327306,1958.0,1957.4,0.83839164]
[1772602037820,3.03327306,1958.0,1955.5,0.64491019]
[1772602037821,0.90661934,1957.6,1955.5,0.64491019]
[1772602037988,2.41293118,1957.1,1956.0,0.29753342]
[1772602038311,3.03327306,1957.1,1956.4,0.40727836]
[1772602038514,1.2772697,1957.3,1956.5,1.27779197]
[1772602038687,3.02765323,1957.2,1956.5,1.27779197]
[1772602038887,2.28859191,1957.4,1956.5,1.68507033]
[1772602039082,3.02746749,1957.3,1956.5,1.68507033]
[1772602039315,1.01136061,1957.4,1956.5,2.98838807]
[1772602039515,2.2882189,1958.0,1957.1,1.30331774]
[1772602039717,3.02343593,1957.9,1957.1,1.30331774]
[1772602039887,3.02343593,1957.9,1956.7,1.466]
[1772602039888,1.02646812,1957.8,1956.7,2.76931774]
[1772602040218,1.02646812,1957.8,1956.9,1.70641706]
[1772602040519,1.02646812,1957.8,1957.0,1.2774655]
[1772602040809,1.27681307,1958.0,1957.1,0.40309932]
[1772602041018,3.02228348,1957.9,1957.1,1.70641706]
[1772602041218,2.30324767,1958.1,1957.1,1.70641706]
[1772602041417,3.02125436,1958.0,1957.2,0.40005493]
[1772602041589,2.30323324,1958.1,1957.3,1.30331774]
[1772602041789,1.02646812,1958.1,1957.3,1.30331774]
[1772602042186,1.27672723,1958.2,1957.3,1.70337267]
[1772602042392,3.02115507,1958.1,1957.3,0.40005493]
[1772602042615,4.29794416,1958.1,1957.4,1.27720445]
[1772602042819,1.27678909,1958.1,1957.4,1.27720445]
[1772602043119,1.02646812,1957.9,1956.7,5.50442933]
[1772602043288,4.04820213,1957.8,1956.7,6.80774707]
[1772602043496,1.02646812,1957.8,1956.8,0.39395471]
[1772602043809,1.02646812,1957.8,1956.9,1.69727245]
[1772602044010,2.30325721,1958.1,1957.0,0.39395471]
[1772602044188,3.02185756,1958.0,1957.0,0.39395471]
[1772602044388,3.02185756,1958.0,1957.3,1.30331774]
[1772602044594,4.29868508,1958.0,1957.4,1.27720445]
[1772602044927,2.30326237,1958.1,1957.3,1.27722076]
[1772602045415,3.02399266,1958.0,1957.3,1.27722076]
[1772602045795,1.02646812,1958.1,1957.3,1.27722076]
[1772602045998,1.27665915,1958.3,1957.4,1.30331774]
[1772602046190,3.02355999,1958.2,1957.4,1.30331774]
[1772602046691,4.3002557,1958.2,1957.5,1.2771392]
[1772602046891,1.27669571,1958.2,1957.5,1.2771392]
[1772602047307,2.41293118,1958.6,1957.6,1.72231121]
[1772602047497,2.41293118,1958.6,1957.4,5.10855683]
[1772602047498,1.02646812,1958.4,1957.4,1.27716497]
[1772602047698,1.02646812,1958.2,1957.3,1.69622438]
[1772602047901,1.02646812,1958.2,1957.3,1.27723091]
[1772602048198,1.02646812,1958.0,1957.3,1.27723091]
[1772602048793,2.3030204,1958.4,1957.4,0.415819]
[1772602048994,3.02290652,1958.3,1957.4,0.415819]
[1772602050229,4.04937464,1958.3,1957.4,0.415819]
[1772602050417,3.02290652,1958.2,1957.4,0.415819]
[1772602050796,4.29962031,1958.2,1957.5,1.2771392]
[1772602050996,2.3031305,1958.3,1957.5,1.2771392]
[1772602051222,3.02313565,1958.2,1957.5,1.2771392]
[1772602051827,1.02646812,1958.3,1957.6,0.40624777]
[1772602052422,2.30293564,1958.6,1957.7,1.70636191]
[1772602052728,3.02401711,1958.5,1957.7,1.70636191]
[1772602052895,3.02401711,1958.5,1957.8,1.2769435]
[1772602053093,3.02401711,1958.5,1957.9,1.30331774]
[1772602053319,3.02401711,1958.5,1957.9,1.7031612]
[1772602053527,7.19660881,1958.8,1957.9,0.39984346]
[1772602053713,3.02495528,1958.7,1957.9,0.39984346]
[1772602054134,0.001,1958.2,1957.9,0.39984346]
[1772602054307,1.02646812,1958.8,1957.9,0.39984346]
[1772602054633,1.02646812,1958.7,1957.8,2.58026124]
[1772602054938,5.1049603,1958.9,1957.8,2.97689387]
[1772602054939,1.02646812,1958.6,1957.8,2.97689387]
[1772602055238,1.02646812,1958.9,1958.0,1.69676475]
[1772602055407,3.02709878,1958.8,1958.1,0.39344701]
[1772602057208,3.02709878,1958.8,1958.2,1.27668266]
[1772602058109,3.02709878,1958.7,1958.2,1.27668266]
[1772602058406,1.02646812,1958.9,1958.2,1.27668266]
[1772602058603,3.03462114,1958.8,1958.2,1.27668266]
[1772602058805,3.03462114,1958.7,1958.2,1.27668266]
[1772602059034,1.02646812,1958.9,1958.2,1.27668266]
[1772602059330,3.03824908,1958.8,1958.2,1.27668266]
[1772602059512,3.03824908,1958.7,1958.2,1.27668266]
[1772602059707,3.03824908,1958.6,1958.2,1.65723023]
[1772602059930,1.02646812,1958.9,1958.2,1.65723023]
[1772602060129,3.03820252,1958.8,1958.2,1.65723023]
[1772602060318,3.03820252,1958.7,1958.2,1.65723023]
[1772602060630,3.03820252,1958.6,1958.2,1.27668266]
[1772602060826,3.04279118,1958.5,1958.2,1.27668266]
[1772602061044,1.02646812,1958.7,1958.2,1.27668266]
[1772602061210,3.0422595,1958.6,1958.1,5.10673067]
[1772602061417,1.02646812,1958.7,1958.1,5.10673067]
[1772602061723,3.68915781,1958.9,1958.1,5.10673067]
[1772602061724,1.02646812,1958.9,1958.1,5.48072592]
[1772602061916,1.02646812,1958.9,1958.2,1.67731299]
[1772602061917,3.0419798,1958.8,1958.2,1.67731299]
[1772602062116,1.02646812,1958.9,1958.2,1.67731299]
[1772602062427,3.04097828,1958.8,1958.2,1.67731299]
[1772602063433,1.02646812,1958.7,1958.1,5.10690676]
[1772602065322,1.02646812,1958.9,1958.1,5.46761827]
[1772602065726,1.02646812,1958.9,1958.1,5.10690676]
[1772602065927,0.001,1958.6,1958.1,5.10690676]
[1772602067313,0.001,1958.6,1958.0,1.631902]
[1772602067821,0.001,1958.6,1958.1,0.35405414]
[1772602069529,0.001,1958.6,1958.3,0.34862096]
[1772602071713,0.001,1958.6,1958.4,1.27655228]
[1772602074248,0.001,1958.6,1958.3,5.10620915]
[1772602074415,0.001,1958.6,1958.3,5.43809254]
[1772602075324,0.001,1958.6,1958.3,6.92809254]
[1772602077847,0.001,1958.6,1958.4,0.32183115]
[1772602078147,3.04996739,1958.9,1958.5,1.2764871]
[1772602078357,3.04996739,1958.8,1958.5,1.2764871]
[1772602078554,1.05746577,1959.0,1958.5,1.2764871]
[1772602078753,4.10880841,1958.9,1958.5,1.2764871]
[1772602079055,3.05134264,1958.8,1958.5,1.2764871]
[1772602079248,1.05746577,1958.9,1958.5,1.2764871]
[1772602079564,3.05264539,1958.8,1958.5,1.2764871]
[1772602079734,1.05746577,1958.9,1958.5,1.2764871]
[1772602079929,3.05264539,1958.8,1958.5,1.2764871]
[1772602080122,3.05424242,1958.7,1958.5,1.2764871]
[1772602080318,1.05746577,1958.9,1958.5,1.2764871]
[1772602080561,4.11177059,1958.8,1958.5,1.2764871]
[1772602080740,3.05430482,1958.7,1958.5,1.2764871]
[1772602081062,1.05746577,1958.7,1958.3,2.76656932]
[1772602081261,3.05664288,1958.6,1958.3,2.76656932]
[1772602081559,1.05746577,1958.7,1958.3,2.76656932]
[1772602081759,3.05664288,1958.6,1958.3,2.76656932]
[1772602081954,1.05746577,1958.7,1958.3,2.76656932]
[1772602082254,3.05664288,1958.6,1958.3,2.76656932]
[1772602082557,1.05746577,1958.7,1958.3,2.76656932]
[1772602082753,3.05862591,1958.6,1958.3,2.76656932]
[1772602082958,1.05746577,1958.7,1958.3,2.76656932]
[1772602083128,3.05873527,1958.6,1958.3,2.76656932]
[1772602083328,3.05873527,1958.5,1958.3,2.76656932]
[1772602083524,1.05746577,1958.7,1958.3,2.76656932]
[1772602083729,3.47039695,1958.9,1958.3,3.06833322]
[1772602084231,2.41293118,1958.9,1958.5,1.30331774]
[1772602084441,4.67686254,1959.1,1958.6,1.27642193]
[1772602084442,3.47039695,1959.1,1958.6,1.27642193]
[1772602085653,3.47039695,1959.3,1958.8,0.36855781]
[1772602086361,1.05746577,1959.3,1958.8,0.36855781]
[1772602086736,1.05746577,1959.3,1958.9,1.27622645]
[1772602086934,3.47039695,1959.3,1958.9,1.27622645]
[1772602087254,1.05746577,1959.3,1958.8,1.27624923]
[1772602088359,1.05746577,1959.3,1958.7,2.76831404]
[1772602088667,1.05746577,1959.2,1958.4,5.46413887]
[1772602088897,1.05746577,1959.1,1958.5,1.2764871]
[1772602090557,1.05746577,1959.1,1958.5,1.6274032]
[1772602091075,1.05746577,1959.1,1958.6,0.3509161]
[1772602091453,0.001,1959.2,1958.6,0.3509161]
[1772602091649,1.05846577,1959.2,1958.5,1.2764871]
[1772602092276,1.05846577,1959.2,1958.5,1.62036128]
[1772602095493,3.05486163,1959.1,1958.5,1.62036128]
[1772602095786,4.1123274,1959.0,1958.5,1.62036128]
[1772602095986,1.05846577,1959.2,1958.6,0.3333259]
[1772602096161,3.05464324,1959.1,1958.6,0.3333259]
[1772602096362,1.05846577,1959.2,1958.6,0.3333259]
[1772602096563,3.05447498,1959.1,1958.6,0.3333259]
[1772602096886,1.05846577,1959.2,1958.6,0.3333259]
[1772602097069,4.11194075,1959.1,1958.6,0.3333259]
[1772602097272,1.05746577,1959.1,1958.6,0.3333259]
[1772602098269,1.05746577,1959.1,1958.7,1.27635676]
[1772602102893,1.05746577,1959.1,1958.7,1.58680284]
[1772602103095,1.0568061,1959.5,1959.0,0.31044608]
[1772602103264,3.05418336,1959.4,1959.0,0.31044608]
[1772602103470,1.0568061,1959.4,1958.9,0.30693318]
[1772602104190,1.0568061,1959.6,1958.9,0.30693318]
[1772602104397,3.05365566,1959.5,1958.9,0.30693318]
[1772602104576,1.0568061,1959.5,1958.9,0.30693318]
[1772602104776,1.0568061,1959.5,1959.0,1.57961482]
[1772602104994,1.0578061,1959.7,1959.1,0.30345352]
[1772602105193,3.05384979,1959.6,1959.1,0.30345352]
[1772602105495,1.0578061,1959.7,1959.1,0.30345352]
[1772602105695,3.05307584,1959.6,1959.1,0.30345352]
[1772602105871,0.001,1959.7,1959.3,0.29994452]
[1772602106193,1e-08,1959.9,1959.3,1.02771007]
[1772602106900,3.05092546,1959.9,1959.5,1.02771007]
[1772602107190,1.0568061,1960.1,1959.5,1.02771007]
[1772602107384,3.04931364,1960.0,1959.5,1.02771007]
[1772602108365,1.0568061,1960.1,1959.5,1.02771007]
[1772602109305,1.0568061,1960.1,1959.6,2.30348063]
[1772602109610,1.0568061,1960.1,1959.7,1.02771007]
[1772602110319,1.0568061,1960.1,1959.6,1.27577056]
[1772602112577,1.0568061,1960.0,1959.0,6.13219671]
[1772602112889,1.27538006,1960.2,1959.2,1.02771007]
[1772602112890,1.0568061,1959.8,1959.2,1.02771007]
[1772602113774,1.0568061,1959.8,1959.3,1.2759659]
[1772602114928,1.0568061,1959.8,1959.3,2.30367597]
[1772602117989,1.0568061,1959.8,1959.4,0.0011]
[1772602118309,1.0578061,1959.8,1959.4,0.0011]
[1772602119984,0.001,1959.8,1959.4,1.02881007]
[1772602120179,0.001,1959.8,1959.5,1.27583567]
[1772602120513,0.001,1959.8,1959.5,2.30354574]
[1772602121078,0.001,1959.8,1959.5,1.27583567]
[1772602122208,0.001,1959.8,1959.5,2.30354574]
[1772602122991,1.0578061,1959.8,1959.5,1.27583567]
[1772602123209,1.0568061,1960.1,1959.5,1.27583567]
[1772602123413,4.10396129,1960.0,1959.5,1.27583567]
[1772602123594,1.0568061,1960.0,1959.5,2.30354574]
[1772602124115,1.0568061,1960.0,1959.6,1.02771007]
[1772602124298,1.0568061,1960.2,1959.7,1.27570546]
[1772602124503,4.10427688,1960.1,1959.7,2.30341553]
[1772602124813,3.04747078,1960.0,1959.7,2.30341553]
[1772602125513,3.04747078,1960.0,1959.8,1.02771007]
[1772602125813,1.0568061,1960.2,1959.8,1.02771007]
[1772602126587,1.0568061,1960.2,1959.9,1.27557528]
[1772602128025,2.6088061,1960.3,1959.9,1.27557528]
[1772602128234,3.04829957,1960.2,1959.9,1.27557528]
[1772602128527,4.02309733,1960.2,1959.8,2.30330035]
[1772602128684,0.97479776,1960.2,1959.8,2.30330035]
[1772602131294,3.05188825,1960.1,1959.9,0.95956929]
[1772602131496,0.97479776,1960.3,1959.9,0.95956929]
[1772602131698,3.05188825,1960.2,1959.9,0.95956929]
[1772602132417,0.97479776,1960.3,1959.9,0.96066929]
[1772602132614,0.001,1960.1,1959.9,0.96066929]
[1772602132816,2.41293118,1960.5,1960.0,2.23507949]
[1772602133122,4.02835916,1960.4,1960.0,2.23507949]
[1772602133286,0.97479776,1960.4,1959.9,1.27663075]
[1772602133693,0.97479776,1960.2,1959.9,0.0011]
[1772602133922,0.97479776,1960.0,1959.9,0.0011]
[1772602140702,0.97479776,1960.3,1959.9,0.0011]
[1772602140910,0.97479776,1960.1,1959.9,0.0011]
[1772602141103,2.41293118,1960.4,1959.9,0.0011]
[1772602141104,4.66303,1960.4,1959.9,0.0011]
[1772602141306,4.03039351,1960.3,1959.9,0.0011]
[1772602141505,4.03039351,1960.2,1959.9,0.0011]
[1772602141719,3.05559575,1960.1,1959.9,0.0011]
[1772602142030,0.97479776,1960.4,1959.9,0.96066929]
[1772602142227,3.05520588,1960.3,1959.9,0.96066929]
[1772602142421,3.05520588,1960.2,1959.9,0.96066929]
[1772602142622,0.97479776,1960.4,1959.9,0.96066929]
[1772602142811,3.0549863,1960.3,1959.9,0.96066929]
[1772602143125,0.97479776,1960.4,1960.0,2.23507949]
[1772602143320,3.05471896,1960.3,1960.0,2.23507949]
[1772602143704,4.02951672,1960.3,1960.0,1.2755102]
[1772602144032,0.97479776,1960.3,1960.0,1.2755102]
[1772602144325,0.97479776,1960.5,1960.0,2.23507949]
[1772602144532,3.05443875,1960.4,1960.0,2.23507949]
[1772602144717,3.05443875,1960.3,1960.0,2.23507949]
[1772602144923,0.97479776,1960.5,1960.0,2.23507949]
[1772602145119,3.05443875,1960.4,1960.0,2.23507949]
[1772602145320,0.97479776,1960.5,1960.0,2.23507949]
[1772602145520,3.05430324,1960.4,1960.1,0.95956929]
[1772602145828,0.97479776,1960.4,1960.1,0.95956929]
[1772602146207,0.001,1960.2,1960.1,0.95956929]
[1772602148131,0.001,1960.2,1960.0,2.23507949]
[1772602149739,0.001,1960.2,1960.1,0.95956929]
[1772602150405,2.95734349,1960.3,1960.1,0.95956929]
[1772602150603,0.97479776,1960.4,1960.1,0.95956929]
[1772602152020,0.97479776,1960.4,1960.1,2.2349583]
[1772602152334,0.97479776,1960.6,1960.2,0.95956929]
[1772602154145,0.97479776,1960.5,1959.9,1.27667336]
[1772602154708,0.97479776,1960.5,1959.9,2.23624265]
[1772602156554,0.97479776,1960.5,1959.9,1.27667336]
[1772602156758,0.97479776,1960.5,1960.1,0.95956929]
[1772602156948,0.97479776,1960.7,1960.2,1.48037122]
[1772602158063,0.97479776,1960.7,1960.1,0.98409628]
[1772602158358,0.001,1960.4,1960.1,0.98409628]
[1772602158521,0.001,1960.4,1960.2,1.27538006]
[1772602158725,0.001,1960.4,1960.2,2.29356018]
[1772602170765,0.001,1960.4,1960.3,0.0011]
[1772602175068,3.43540607,1960.8,1960.4,1.01818012]
[1772602175272,3.05857823,1960.7,1960.4,1.01818012]
[1772602175446,3.05857823,1960.6,1960.4,1.01818012]
[1772602175763,1.02247489,1960.8,1960.4,1.01818012]
[1772602175974,3.05836731,1960.7,1960.5,1.01818012]
[1772602176272,1.02247489,1960.9,1960.5,1.01818012]
[1772602176451,3.05728405,1960.8,1960.5,1.01818012]
[1772602176651,1.02247489,1960.9,1960.5,1.01818012]
[1772602176847,3.05728405,1960.8,1960.5,1.01818012]
[1772602177054,1.02247489,1960.9,1960.5,1.01818012]
[1772602177371,3.05717486,1960.8,1960.5,2.29333052]
[1772602177579,1.02247489,1960.9,1960.6,1.01818012]
[1772602179273,1.02247489,1960.9,1960.7,1.27505482]
[1772602179456,1.02247489,1961.1,1960.7,2.29323494]
[1772602179655,4.07736259,1961.0,1960.7,2.29323494]
[1772602179951,3.0548877,1960.9,1960.7,1.01818012]
[1772602181977,4.07736259,1960.9,1960.6,2.29325954]
[1772602182174,1.02247489,1960.9,1960.6,2.29325954]
[1772602182475,1.02247489,1960.7,1960.3,1.27640274]
[1772602183750,1.02247489,1960.7,1960.3,2.29458286]
[1772602185983,0.001,1960.8,1960.5,2.29336502]
[1772602185984,1.02347489,1960.8,1960.5,2.29336502]
[1772602188675,0.001,1960.8,1960.6,0.89106964]
[1772602188875,7.51201191,1961.2,1960.7,0.89106964]
[1772602188876,0.89036466,1961.0,1960.7,0.89106964]
[1772602190773,0.89036466,1961.0,1960.7,2.16610135]
[1772602191552,0.89036466,1961.1,1960.8,0.89106964]
[1772602192853,0.89036466,1961.1,1960.9,1.27492477]
[1772602193184,0.89036466,1961.1,1960.8,2.1660189]
[1772602195181,0.89036466,1961.1,1960.8,2.1671189]
[1772602195353,0.001,1961.0,1960.8,2.1671189]
[1772602196781,0.001,1961.0,1960.9,0.89106964]
[1772602197081,0.001,1961.0,1960.9,2.16599441]
[1772602198385,0.89136466,1961.0,1960.8,1.27603141]
[1772602198786,0.89136466,1961.0,1960.8,1.2760887]
[1772602198955,0.89136466,1961.0,1960.8,0.0011]
[1772602199758,0.001,1961.0,1960.8,0.89216964]
[1772602200672,1.557,1961.4,1961.0,0.89106964]
[1772602200673,3.05282519,1961.3,1961.0,0.89106964]
[1772602200874,0.89036466,1961.4,1961.0,0.89106964]
[1772602201076,0.89036466,1961.3,1960.8,0.0011]
[1772602201287,0.89036466,1961.2,1960.8,1.27607515]
[1772602201499,0.89036466,1961.2,1960.8,1.2760781]
[1772602201784,0.89036466,1961.2,1960.8,1.27608583]
[1772602202160,3.30329584,1961.6,1961.0,0.89106964]
[1772602202375,0.89036466,1961.4,1961.0,0.89106964]
[1772602202580,3.05269305,1961.3,1961.0,0.89106964]
[1772602203188,0.89036466,1961.4,1961.1,1.27479475]
[1772602203690,3.05270263,1961.3,1961.0,2.16587794]
[1772602204287,3.05270263,1961.3,1961.0,0.89106964]
[1772602204593,0.89036466,1961.2,1960.9,0.89106964]
[1772602204993,0.89036466,1961.4,1960.9,0.89106964]
[1772602205191,3.94345731,1961.3,1961.0,1.27485976]
[1772602205377,0.89036466,1961.3,1961.0,2.1659294]
[1772602205577,0.89036466,1961.5,1961.1,0.89106964]
[1772602205775,3.05323431,1961.4,1961.2,1.41187157]
[1772602205974,0.89036466,1961.5,1961.2,1.41187157]
[1772602206573,0.89036466,1961.5,1961.2,0.89106964]
[1772602207087,0.89036466,1961.5,1960.9,1.27491348]
[1772602207393,0.89036466,1961.3,1960.8,2.16711602]
[1772602207769,0.89036466,1961.3,1960.9,0.89106964]
[1772602208708,0.89036466,1961.3,1961.1,0.0011]
[1772602208902,0.001,1961.2,1961.1,0.0011]
[1772602210991,0.89136466,1961.2,1961.0,0.0011]
[1772602219609,0.9343794,1961.5,1961.1,0.92847778]
[1772602219793,3.05472428,1961.4,1961.1,0.92847778]
[1772602220689,3.05472428,1961.4,1961.1,2.2032669]
[1772602221213,2.2089229,1961.5,1961.1,0.92847778]
[1772602221514,3.05529949,1961.4,1961.1,2.2032709]
[1772602222084,3.05529949,1961.4,1961.1,2.20436779]
[1772602222311,0.9343794,1961.5,1961.1,2.20436779]
[1772602222511,3.05549105,1961.4,1961.1,2.20436779]
[1772602222710,0.9343794,1961.5,1961.1,2.20436779]
[1772602222907,3.05549105,1961.4,1961.1,2.20436779]
[1772602223106,3.05549105,1961.3,1961.1,2.20436779]
[1772602223313,2.20892294,1961.5,1961.1,0.92957778]
[1772602223511,3.97316659,1961.4,1961.1,0.0011]
[1772602223814,0.91759152,1961.2,1961.0,0.0011]
[1772602225213,0.91759152,1961.0,1960.8,0.0011]
[1772602225384,3.05717433,1960.9,1960.8,0.0011]
[1772602225587,3.05717433,1960.9,1960.7,0.0011]
[1772602225588,0.91759152,1960.8,1960.7,0.0011]
[1772602225908,3.97476585,1960.8,1960.7,0.0011]
[1772602227692,5.24975565,1960.8,1960.7,0.0011]
[1772602229316,2.19258132,1960.8,1960.7,0.0011]
[1772602230601,0.91759152,1960.8,1960.7,0.0011]
[1772602230802,1.27499063,1960.8,1960.5,0.0011]
[1772602231128,0.91759152,1960.7,1960.5,0.0011]
[1772602232026,0.91759152,1960.6,1960.5,0.0011]
[1772602233733,0.91759152,1960.8,1960.5,0.0011]
[1772602234795,0.91759152,1961.0,1960.7,0.0011]
[1772602235840,0.91759152,1960.8,1960.7,0.0011]
[1772602236206,0.91759152,1960.9,1960.7,0.0011]
[1772602237711,0.91759152,1960.7,1960.5,0.0011]
[1772602238817,0.91759152,1960.8,1960.5,0.0011]
[1772602239731,2.48959152,1960.9,1960.5,0.0011]
[1772602239931,0.001,1961.1,1960.6,0.78006944]
[1772602240110,0.001,1961.1,1960.5,0.0011]
[1772602240818,0.001,1961.1,1960.6,0.87284343]
[1772602241021,0.91759152,1961.5,1960.9,0.87284343]
[1772602241213,3.04832666,1961.4,1960.9,0.87284343]
[1772602241413,0.91759152,1961.5,1960.9,0.87284343]
[1772602241936,0.91759152,1961.5,1961.1,0.87284343]
[1772602242119,0.91759152,1961.5,1961.2,2.14757318]
[1772602243341,0.91759152,1961.5,1961.2,0.87284343]
[1772602244230,2.49059152,1961.7,1961.3,0.87284343]
[1772602244538,3.76499818,1961.7,1961.3,0.87284343]
[1772602244941,2.49059152,1961.7,1961.3,0.87284343]
[1772602245638,3.76500847,1961.7,1961.3,0.87284343]
[1772602245941,2.49059152,1961.7,1961.3,0.87284343]
[1772602246147,0.91759152,1961.6,1961.1,2.14760924]
[1772602246525,0.91759152,1961.6,1961.2,0.87284343]
[1772602246836,2.64773452,1961.9,1961.2,0.87284343]
[1772602246837,0.91759152,1961.9,1961.2,0.87284343]
[1772602247041,2.19178426,1962.1,1961.2,0.87284343]
[1772602247208,3.04448603,1962.0,1961.2,0.87284343]
[1772602247723,2.19178426,1962.1,1961.2,0.87284343]